[Event "FIDE World Cup G12-B 2024"]
[Site "Batumi"]
[Date "2024.06.24"]
[Round "2.6"]
[White "Abylaykyzy, Bibisara"]
[Black "Amin-Erdene, Tsengel"]
[Result "1/2-1/2"]
[ECO "C07"]
[WhiteElo "1577"]
[BlackElo "1491"]
[Annotator "NA RC"]
[PlyCount "148"]
[EventDate "2024.06.23"]
[EventType "swiss"]
[EventCountry "GEO"]
[SourceTitle "playchess.com"]
[Source "ChessBase"]
[SourceQuality "1"]
[TimeControl "5400+30"]

1. e4 {[%emt 0:00:04]} e6 {[%emt 0:00:45]} 2. d4 {[%emt 0:00:06]} d5 {[%emt 0:00:21]} 3. Nd2 {[%emt 0:00:04]} c5 {[%emt 0:01:29]} 4. exd5 {[%emt 0:00:07]} Qxd5 {[%emt 0:01:13]} 5. Ngf3 {[%emt 0:01:07]} cxd4 {[%emt 0:03:47]} 6. Bc4 {[%emt 0:00:08]} Qd6 {[%emt 0:01:38]} 7. O-O {[%emt 0:01:12]} Nf6 {[%emt 0:02:02]} 8. Nb3 {[%emt 0:00:40]} Nc6 {[%emt 0:02:18]} 9. Nfxd4 {[%emt 0:00:37]} Nxd4 {[%emt 0:02:08]} 10. Nxd4 {[%emt 0:01:53]} a6 {[%emt 0:03:00]} 11. a4 {[%emt 0:04:45]} Be7 {[%emt 0:02:33]} 12. b3 {[%emt 0:00:45]} O-O {[%emt 0:04:24]} 13. Bb2 {[%emt 0:03:07]} Rd8 {[%emt 0:02:52]} 14. Qe2 {[%emt 0:00:09]} Qc7 {[%emt 0:03:42]} 15. Rfe1 {[%emt 0:00:27]} Nd5 {[%emt 0:05:43]} 16. Qf3 {[%emt 0:11:43]} Nb6 {[%emt 0:12:08]} 17. Bd3 {[%emt 0:01:01]} Bf6 {[%emt 0:10:00]} 18. Qe4 {[%emt 0:02:08]} Bxd4 {[%emt 0:04:14]} 19. Bxd4 {[%emt 0:02:23]} f5 {[%emt 0:01:43]} 20. Qe5 {[%emt 0:02:27]} Qxe5 {[%emt 0:01:33]} 21. Bxe5 {[%emt 0:05:15]} Nd5 {[%emt 0:01:14]} 22. Rad1 {[%emt 0:01:46]} Bd7 {[%emt 0:02:51]} 23. Bxf5 {[%emt 0:11:25]} exf5 {[%emt 0:05:11]} 24. Rxd5 {[%emt 0:01:06]} Bc6 {[%emt 0:01:10]} 25. Rd4 {[%emt 0:00:32]} Rxd4 {[%emt 0:01:15]} 26. Bxd4 {[%emt 0:00:30]} Be4 {[%emt 0:01:30]} 27. c3 {[%emt 0:01:07]} Kf7 {[%emt 0:01:29]} 28. b4 {[%emt 0:01:07]} a5 {[%emt 0:01:23]} 29. f3 {[%emt 0:04:00]} Bc2 {[%emt 0:01:06]} 30. Bc5 {[%emt 0:01:33]} Re8 {[%emt 0:03:22]} 31. Rxe8 {[%emt 0:00:04]} Kxe8 {[%emt 0:00:16]} 32. bxa5 {[%emt 0:00:08]} Bxa4 {[%emt 0:00:20]} 33. Kf2 {[%emt 0:00:17]} Kd7 {[%emt 0:00:34]} 34. Ke3 {[%emt 0:00:24]} Ke6 {[%emt 0:01:34]} 35. Kd4 {[%emt 0:01:50]} Bc6 {[%emt 0:01:16]} 36. Bf8 {[%emt 0:00:51]} g5 {[%emt 0:02:01]} 37. Kc5 {[%emt 0:02:04]} Kd7 {[%emt 0:01:52]} 38. Bh6 {[%emt 0:02:18]} g4 {[%emt 0:00:46]} 39. fxg4 {[%emt 0:00:06]} fxg4 {[%emt 0:00:09]} 40. g3 {[%emt 0:00:04]} Bf3 {[%emt 0:01:26]} 41. c4 {[%emt 0:03:46]} Be4 {[%emt 0:01:53]} 42. Kb6 {[%emt 0:00:18]} Bf3 {[%emt 0:01:33]} 43. c5 {[%emt 0:03:35]} Be4 {[%emt 0:01:38]} 44. a6 {[%emt 0:01:28]} bxa6 {[%emt 0:00:40]} 45. Kxa6 {[%emt 0:00:02]} Kc6 {[%emt 0:00:47]} 46. Bf8 {[%emt 0:00:07]} Bd3+ {[%emt 0:00:53]} 47. Ka5 {[%emt 0:00:12]} Be2 {[%emt 0:00:41]} 48. Kb4 {[%emt 0:01:04]} Bf3 {[%emt 0:00:15]} 49. Kc3 {[%emt 0:00:26]} Be2 {[%emt 0:00:32]} 50. Kd4 {[%emt 0:00:04]} Bf3 {[%emt 0:00:19]} 51. Ke5 {[%emt 0:02:18]} Be2 {[%emt 0:00:32]} 52. Kf4 {[%emt 0:02:52]} Bd1 {[%emt 0:00:25]} 53. Kg5 {[%emt 0:02:19]} Be2 {[%emt 0:00:14]} 54. Bd6 {[%emt 0:01:16]} Bd1 {[%emt 0:00:19]} 55. Kh5 {[%emt 0:00:57]} Be2 {[%emt 0:00:26]} 56. Kh6 {[%emt 0:00:07]} Bd3 {[%emt 0:00:09]} 57. Bf8 {[%emt 0:00:16]} Bc2 {[%emt 0:00:18]} 58. Kg5 {[%emt 0:00:45]} Bd1 {[%emt 0:00:11]} 59. Kf4 {[%emt 0:01:38]} Be2 {[%emt 0:00:17]} 60. Ke3 {[%emt 0:00:22]} Bd1 {[%emt 0:00:18]} 61. Kf2 {[%emt 0:00:08]} Kd7 {[%emt 0:00:59]} 62. Bd6 {[%emt 0:00:23]} Kc6 {[%emt 0:00:33]} 63. Ke3 {[%emt 0:00:25]} Kd7 {[%emt 0:00:39]} 64. Kf4 {[%emt 0:00:28]} Kc6 {[%emt 0:00:17]} 65. Kg5 {[%emt 0:00:28]} Be2 {[%emt 0:00:19]} 66. Kh4 {[%emt 0:00:44]} Bd1 {[%emt 0:00:11]} 67. h3 {[%emt 0:00:07]} gxh3 {[%emt 0:00:12]} 68. Kxh3 {[%emt 0:00:06]} Bc2 {[%emt 0:00:10]} 69. Kh4 {[%emt 0:00:10]} Bg6 {[%emt 0:00:15]} 70. Kg5 {[%emt 0:00:02]} Bd3 {[%emt 0:00:11]} 71. g4 {[%emt 0:00:06]} Bc2 {[%emt 0:00:06]} 72. Kh6 {[%emt 0:00:07]} Bd3 {[%emt 0:00:10]} 73. g5 {[%emt 0:00:43]} Be4 {[%emt 0:00:06]} 74. Kg7 {[%emt 0:00:07]} Bd3 {[%emt 0:00:14]} 1/2-1/2

[Event "FIDE World Cup G12-B 2024"]
[Site "Batumi"]
[Date "2024.06.24"]
[Round "2.7"]
[White "Bakhshizada, Asnad"]
[Black "QUICKPEN, Deborah Ebimobo-ere"]
[Result "1/2-1/2"]
[ECO "D00"]
[WhiteElo "1748"]
[BlackElo "2048"]
[Annotator "NA RC"]
[PlyCount "98"]
[EventDate "2024.06.23"]
[EventType "swiss"]
[EventCountry "GEO"]
[SourceTitle "playchess.com"]
[Source "ChessBase"]
[SourceQuality "1"]
[TimeControl "5400+30"]

1. d4 {[%emt 0:00:09]} Nf6 {[%emt 0:00:07]} 2. Bg5 {[%emt 0:00:08]} d5 {[%emt 0:00:05]} 3. e3 {[%emt 0:00:15]} c5 {[%emt 0:00:05]} 4. Bxf6 {[%emt 0:00:34]} gxf6 {[%emt 0:00:18]} 5. Nf3 {[%emt 0:02:02]} Qb6 {[%emt 0:00:55]} 6. Qc1 {[%emt 0:04:09] D00: 1 d4 d5: Unusual lines.} Nc6 {[%emt 0:03:37]} 7. c3 {[%emt 0:02:31]} e5 {[%emt 0:02:08]} 8. dxc5 {[%emt 0:01:25]} Bxc5 {[%emt 0:00:30]} 9. b4 {[%emt 0:02:42]} Bd6 {[%emt 0:02:54]} 10. b5 {[%emt 0:01:54]} Na5 {[%emt 0:02:16]} 11. Nbd2 {[%emt 0:01:23]} Bd7 {[%emt 0:03:13]} 12. Be2 {[%emt 0:02:13] [#]} Rg8 {[%emt 0:00:57]} (12... Bxb5 $2 {perishes.} 13. Rb1 $18) (12... Rc8 $1 $17 13. Qb2 Qc7) 13. g3 {[%emt 0:00:57] [#]} Rc8 {[%emt 0:01:04]} (13... Bxb5 $2 {too greedy.} 14. Rb1 $18) (13... Bh3 $1 $17) 14. Qc2 {[%emt 0:06:18]} e4 {[%emt 0:04:42]} 15. Nd4 {[%emt 0:01:35]} Bb4 {[%emt 0:00:12]} 16. Nxe4 {[%emt 0:09:41]} dxe4 {[%emt 0:00:46]} 17. Qxe4+ {[%emt 0:00:19]} Be7 {[%emt 0:00:07]} 18. Qxh7 {[%emt 0:00:54]} Rf8 {[%emt 0:00:23]} 19. O-O {[%emt 0:00:49]} Rxc3 {[%emt 0:00:30]} (19... Rc5 $15 {is more appropriate.}) 20. Rfd1 {[%emt 0:01:12]} (20. Rac1 $1 $11 Qc5 21. Rxc3 Qxc3 22. Rd1) 20... Nc4 {[%emt 0:01:04]} 21. Bxc4 {[%emt 0:08:32]} Rxc4 {[%emt 0:00:10]} 22. Qd3 {[%emt 0:06:47]} Qc7 {[%emt 1:15:27]} 23. a4 {[%emt 0:03:47]} Rh8 {[%emt 0:00:00]} 24. a5 {[%emt 0:03:00]} Qc5 {[%emt 0:00:00]} 25. Qe4 {[%emt 0:03:37]} Bc8 {[%emt 0:00:00]} ({But not} 25... Bxb5 26. Qxb7 Bd7 27. Rab1 $17) 26. a6 {[%emt 0:01:21]} Qc7 $2 {[%emt 0:00:00] [#]} (26... bxa6 $17 {and life is bright.} 27. bxa6 Kf8) 27. Qd3 $4 {[%emt 0:01:52]} (27. b6 $1 $18 {[%cal Rb6c7]} Qxb6 28. Rdb1) 27... Rc5 {[%emt 0:00:00]} 28. Rdb1 {[%emt 0:11:51]} Qd7 {[%emt 0:00:00]} 29. b6 {[%emt 0:01:08]} bxa6 {[%emt 0:00:00]} 30. bxa7 {[%emt 0:00:55]} Qxa7 {[%emt 0:00:00]} 31. Qe4 $19 {[%emt 0:01:21]} Qd7 {[%emt 0:00:00]} 32. Rb6 {[%emt 0:02:56]} Qd5 {[%emt 0:00:00]} 33. Qxd5 {[%emt 0:01:55]} Rxd5 {[%emt 0:00:00]} 34. Rb8 {[%emt 0:00:38]} Kd7 {[%emt 0:00:00]} 35. Ra8 {[%emt 0:00:56]} Bc5 {[%emt 0:00:00]} 36. Nb3 {[%emt 0:00:29]} Rhh5 {[%emt 0:00:00]} 37. Rc1 {[%emt 0:00:52]} Bb7 {[%emt 0:00:00]} 38. Rg8 {[%emt 0:00:38]} Rxh2 {[%emt 0:00:00]} 39. e4 {[%emt 0:01:36]} Rdh5 {[%emt 0:00:00]} 40. Nxc5+ {[%emt 0:00:42]} Ke7 {[%emt 0:00:00]} 41. Rc4 {[%emt 0:01:47]} Bc6 {[%emt 0:00:00]} 42. Nxa6 {[%emt 0:04:41]} Bb5 {[%emt 0:00:00]} 43. Rc7+ {[%emt 0:00:26]} Ke6 {[%emt 0:00:00]} 44. Nc5+ {[%emt 0:01:05]} Kd6 {[%emt 0:00:00]} 45. Rcc8 {[%emt 0:00:17]} Rh1+ {[%emt 0:00:00]} 46. Kg2 {[%emt 0:00:10]} Bf1+ {[%emt 0:00:00]} 47. Kf3 {[%emt 0:00:13]} Rxc5 {[%emt 0:00:00]} 48. Rgd8+ {[%emt 0:00:12]} Ke7 {[%emt 0:00:00]} 49. Re8+ {[%emt 0:00:08]} Kd6 {[%emt 0:13:30]} 1/2-1/2

[Event "FIDE World Cup G12-B 2024"]
[Site "Batumi"]
[Date "2024.06.24"]
[Round "2.8"]
[White "Bechvaia, Anastasia"]
[Black "Sreekarthika Velmurugan"]
[Result "0-1"]
[ECO "C54"]
[WhiteElo "1549"]
[BlackElo "1838"]
[Annotator "NA RC"]
[PlyCount "66"]
[EventDate "2024.06.23"]
[EventType "swiss"]
[EventCountry "GEO"]
[SourceTitle "playchess.com"]
[Source "ChessBase"]
[SourceQuality "1"]
[TimeControl "5400+30"]

1. e4 {[%emt 0:00:02]} e5 {[%emt 0:07:27]} 2. Nf3 {[%emt 0:00:09]} Nc6 {[%emt 0:00:04]} 3. Bc4 {[%emt 0:00:09]} Bc5 {[%emt 0:00:08]} 4. O-O {[%emt 0:00:08]} Nf6 {[%emt 0:00:05]} 5. d3 {[%emt 0:00:12]} d6 {[%emt 0:00:25]} 6. Bg5 {[%emt 0:00:11]} O-O {[%emt 0:01:51]} 7. c3 {[%emt 0:00:28]} a6 {[%emt 0:00:23]} 8. a4 {[%emt 0:00:21]} Ba7 {[%emt 0:02:37]} 9. Nbd2 {[%emt 0:00:41]} Be6 {[%emt 0:02:15]} 10. Bxe6 {[%emt 0:02:50]} fxe6 {[%emt 0:00:06]} 11. Re1 {[%emt 0:00:51]} Qd7 {[%emt 0:05:00]} 12. h3 {[%emt 0:00:53]} h6 {[%emt 0:03:48]} 13. Be3 {[%emt 0:00:38]} Qf7 {[%emt 0:04:35]} 14. Bxa7 {[%emt 0:00:51]} Rxa7 {[%emt 0:00:08]} 15. Nf1 {[%emt 0:03:16]} Nh5 {[%emt 0:00:37]} 16. Qd2 {[%emt 0:04:36]} Nf4 {[%emt 0:00:09]} 17. Ng3 {[%emt 0:00:31]} Nxg2 {[%emt 0:02:02]} 18. Kxg2 {[%emt 0:00:13]} Qxf3+ {[%emt 0:00:06]} 19. Kg1 {[%emt 0:00:10]} Raa8 {[%emt 0:00:41]} 20. Re3 {[%emt 0:00:14]} Qf7 {[%emt 0:00:06]} 21. Kg2 {[%emt 0:00:52]} Ne7 {[%emt 0:00:16]} 22. Rf1 {[%emt 0:00:46]} Ng6 {[%emt 0:00:07]} 23. Kh2 {[%emt 1:22:58]} Nf4 {[%emt 0:06:40]} 24. d4 {[%emt 0:00:00]} Qf6 {[%emt 0:02:07]} 25. d5 {[%emt 0:00:00]} Qh4 {[%emt 0:01:53]} 26. Ne2 {[%emt 0:00:00]} exd5 {[%emt 0:00:46]} 27. exd5 {[%emt 0:00:00]} Nxe2 {[%emt 0:01:28]} 28. Qxe2 {[%emt 0:00:00]} Rf4 {[%emt 0:00:25]} 29. Rg3 {[%emt 0:00:00]} Raf8 {[%emt 0:00:32]} 30. b3 {[%emt 0:00:00]} e4 {[%emt 0:01:39]} 31. b4 {[%emt 0:00:00]} Rf3 {[%emt 0:00:11]} 32. Rg2 {[%emt 0:00:00]} Rxh3+ {[%emt 0:00:08]} 33. Kg1 {[%emt 0:00:00]} Rh1# {[%emt 0:00:03]} 0-1

[Event "FIDE World Cup G12-B 2024"]
[Site "Batumi"]
[Date "2024.06.24"]
[Round "2.9"]
[White "Li, Sophie"]
[Black "Kvirkvelia, Anastasia"]
[Result "1-0"]
[ECO "B11"]
[WhiteElo "1764"]
[BlackElo "1440"]
[Annotator "NA RC"]
[PlyCount "113"]
[EventDate "2024.06.23"]
[EventType "swiss"]
[EventCountry "GEO"]
[SourceTitle "playchess.com"]
[Source "ChessBase"]
[SourceQuality "1"]
[TimeControl "5400+30"]

1. e4 {[%emt 0:00:14]} c6 {[%emt 0:00:04]} 2. Nc3 {[%emt 0:00:16]} d5 {[%emt 0:00:09]} 3. Nf3 {[%emt 0:00:30]} dxe4 {[%emt 0:00:13]} 4. Nxe4 {[%emt 0:00:08]} Nd7 {[%emt 0:00:04]} 5. Qe2 {[%emt 0:01:16]} e6 {[%emt 0:00:26]} 6. d4 {[%emt 0:01:01]} Ngf6 {[%emt 0:04:50]} 7. c4 {[%emt 0:03:22]} Nxe4 {[%emt 0:00:20]} 8. Qxe4 {[%emt 0:00:15]} Nf6 {[%emt 0:00:02]} 9. Qd3 {[%emt 0:01:25]} Be7 {[%emt 0:00:10]} 10. Be2 {[%emt 0:00:43]} O-O {[%emt 0:00:15]} 11. O-O {[%emt 0:01:03]} b6 {[%emt 0:00:10]} 12. Ne5 {[%emt 0:02:04]} Bb7 {[%emt 0:00:22]} 13. Bf3 {[%emt 0:01:19]} Rc8 {[%emt 0:00:34]} 14. Bf4 {[%emt 0:01:15]} Nd7 {[%emt 0:02:09]} 15. Be4 {[%emt 0:08:37]} f5 {[%emt 0:01:40]} 16. Bf3 {[%emt 0:00:37]} g5 {[%emt 0:00:54]} 17. Nxd7 {[%emt 0:00:46]} Qxd7 {[%emt 0:00:25]} 18. Be5 {[%emt 0:00:43]} g4 {[%emt 0:00:36]} 19. Be2 {[%emt 0:00:34]} Bd6 {[%emt 0:03:17]} 20. Qg3 {[%emt 0:03:37]} Bxe5 {[%emt 0:03:42]} 21. Qxe5 {[%emt 0:00:30]} c5 {[%emt 0:10:08]} 22. Rad1 {[%emt 0:03:04]} cxd4 {[%emt 0:11:01]} 23. Rxd4 {[%emt 0:00:39]} Qc6 {[%emt 0:00:48]} 24. f3 {[%emt 0:00:43]} Rfd8 {[%emt 0:04:27]} 25. Rfd1 {[%emt 0:01:42]} Rxd4 {[%emt 0:02:39]} 26. Rxd4 {[%emt 0:00:29]} Re8 {[%emt 0:04:27]} 27. Rd6 {[%emt 0:01:33]} Qc5+ {[%emt 0:03:25]} 28. Qxc5 {[%emt 0:00:07]} bxc5 {[%emt 0:00:39]} 29. fxg4 {[%emt 0:00:16]} fxg4 {[%emt 0:00:12]} 30. Bxg4 {[%emt 0:00:23]} e5 {[%emt 0:00:32]} 31. Be6+ {[%emt 0:00:45]} Kf8 {[%emt 0:01:43]} 32. Bd5 {[%emt 0:00:51]} Bxd5 {[%emt 0:03:09]} 33. Rxd5 {[%emt 0:00:12]} e4 {[%emt 0:00:08]} 34. Rxc5 {[%emt 0:00:08]} e3 {[%emt 0:00:19]} 35. Kf1 {[%emt 0:00:04]} Rd8 {[%emt 0:00:37]} 36. Ke2 {[%emt 0:00:59]} Rd2+ {[%emt 0:00:07]} 37. Kxe3 {[%emt 0:00:04]} Rxb2 {[%emt 0:00:09]} 38. Rf5+ {[%emt 0:00:07]} Ke7 {[%emt 0:00:10]} 39. Rf2 {[%emt 0:00:09]} Rb4 {[%emt 0:00:13]} 40. Kd4 {[%emt 0:00:04]} Kd6 {[%emt 0:00:17]} 41. Rf6+ {[%emt 0:00:14]} Ke7 {[%emt 0:00:09]} 42. Ra6 {[%emt 0:00:24]} Rb7 {[%emt 0:00:20]} 43. c5 {[%emt 0:00:26]} Kd8 {[%emt 0:00:35]} 44. Kd5 {[%emt 0:00:40]} Rg7 {[%emt 0:00:10]} 45. g3 {[%emt 0:00:20]} Rd7+ {[%emt 0:00:10]} 46. Kc4 {[%emt 0:00:19]} Rd2 {[%emt 0:00:49]} 47. Rd6+ {[%emt 0:00:17]} Rxd6 {[%emt 0:00:06]} 48. cxd6 {[%emt 0:00:04]} Kd7 {[%emt 0:00:05]} 49. Kd5 {[%emt 0:00:02]} Kd8 {[%emt 0:00:19]} 50. Kc6 {[%emt 0:00:13]} Kc8 {[%emt 0:00:04]} 51. g4 {[%emt 0:00:20]} a6 {[%emt 0:00:29]} 52. h4 {[%emt 0:00:03]} a5 {[%emt 0:00:04]} 53. g5 {[%emt 0:00:03]} a4 {[%emt 0:00:05]} 54. h5 {[%emt 0:00:02]} a3 {[%emt 0:00:07]} 55. g6 {[%emt 0:00:03]} hxg6 {[%emt 0:00:08]} 56. hxg6 {[%emt 0:00:03]} Kd8 {[%emt 0:00:16]} 57. g7 {[%emt 1:12:53]} 1-0

[Event "FIDE World Cup G12-B 2024"]
[Site "Batumi"]
[Date "2024.06.24"]
[Round "2.10"]
[White "Chiokadze, Barbare"]
[Black "Vazquez Sanchez, Antia"]
[Result "0-1"]
[ECO "D80"]
[WhiteElo "1461"]
[BlackElo "1607"]
[Annotator "NA RC"]
[PlyCount "126"]
[EventDate "2024.06.23"]
[EventType "swiss"]
[EventCountry "GEO"]
[SourceTitle "playchess.com"]
[Source "ChessBase"]
[SourceQuality "1"]
[TimeControl "5400+30"]

1. d4 {[%emt 0:00:01]} Nf6 {[%emt 0:00:03]} 2. c4 {[%emt 0:00:06]} g6 {[%emt 0:00:29]} 3. Nc3 {[%emt 0:00:04]} d5 {[%emt 0:00:08]} 4. Bg5 {[%emt 0:00:50]} Ne4 {[%emt 0:00:58]} 5. Nxe4 {[%emt 0:00:45]} dxe4 {[%emt 0:00:06]} 6. e3 {[%emt 0:00:06]} c6 {[%emt 0:01:13]} 7. Qc2 {[%emt 0:01:39]} Qa5+ {[%emt 0:00:44]} 8. Qc3 {[%emt 0:00:43]} Qxg5 {[%emt 0:00:15]} 9. Ne2 {[%emt 0:05:56]} Bg7 {[%emt 0:02:13]} 10. Ng3 {[%emt 0:03:10]} Qh4 {[%emt 0:06:08]} 11. Qc2 {[%emt 0:02:15]} Nd7 {[%emt 0:05:01]} 12. Nxe4 {[%emt 0:06:55]} Nf6 {[%emt 0:01:40]} 13. Nxf6+ {[%emt 0:09:13]} Qxf6 {[%emt 0:00:21]} 14. Be2 {[%emt 0:05:28]} c5 {[%emt 0:05:08]} 15. Rd1 {[%emt 0:02:42]} Qb6 {[%emt 0:01:33]} 16. dxc5 {[%emt 0:08:10]} Qxc5 {[%emt 0:07:27]} 17. O-O {[%emt 0:02:25]} O-O {[%emt 0:01:14]} 18. Rd5 {[%emt 0:04:17]} Qc7 {[%emt 0:01:55]} 19. Rfd1 {[%emt 0:02:04]} Be6 {[%emt 0:01:03]} 20. R5d2 {[%emt 0:00:21]} Rac8 {[%emt 0:01:51]} 21. b3 {[%emt 0:05:45]} b5 {[%emt 0:03:29]} 22. Rc1 {[%emt 0:03:58]} Qa5 {[%emt 0:02:47]} 23. h3 {[%emt 0:07:21]} bxc4 {[%emt 0:04:48]} 24. bxc4 {[%emt 0:00:22]} Bxc4 {[%emt 0:02:55]} 25. Bxc4 {[%emt 0:10:35]} Rxc4 {[%emt 0:00:24]} 26. Qxc4 {[%emt 0:00:18]} Qxd2 {[%emt 0:00:11]} 27. a3 {[%emt 0:02:20]} Bb2 {[%emt 0:03:43]} 28. Rc2 {[%emt 0:00:38]} Qe1+ {[%emt 0:01:09]} 29. Kh2 {[%emt 0:00:08]} Bxa3 {[%emt 0:00:22]} 30. Qa4 {[%emt 0:00:25]} Bd6+ {[%emt 0:01:05]} 31. g3 {[%emt 0:00:16]} a5 {[%emt 0:00:05]} 32. Ra2 {[%emt 0:00:39]} Bb4 {[%emt 0:01:06]} 33. Kg2 {[%emt 0:00:27]} Rd8 {[%emt 0:02:58]} 34. Ra1 {[%emt 0:00:20]} Qe2 {[%emt 0:00:24]} 35. Ra2 {[%emt 0:00:04]} Rd2 {[%emt 0:02:14]} 36. Rxd2 {[%emt 0:01:15]} Qxd2 {[%emt 0:00:03]} 37. Qe8+ {[%emt 0:00:10]} Kg7 {[%emt 0:00:05]} 38. Qb5 {[%emt 0:00:21]} Bd6 {[%emt 0:01:08]} 39. Qa4 {[%emt 0:00:59]} Qb4 {[%emt 0:00:56]} 40. Qa1+ {[%emt 0:00:29]} Kg8 {[%emt 0:01:24]} 41. Kf3 {[%emt 0:00:39]} a4 {[%emt 0:00:18]} 42. Ke2 {[%emt 0:00:08]} Qb3 {[%emt 0:03:46]} 43. Kd2 {[%emt 0:01:03]} Bb4+ {[%emt 0:02:02]} 44. Kc1 {[%emt 0:00:09]} Ba3+ {[%emt 0:00:16]} 45. Kd2 {[%emt 0:00:15]} Bb2 {[%emt 0:00:12]} 46. Qd1 {[%emt 0:01:16]} Qxd1+ {[%emt 0:01:46]} 47. Kxd1 {[%emt 0:00:04]} a3 {[%emt 0:00:07]} 48. Kc2 {[%emt 0:00:06]} Kg7 {[%emt 0:00:10]} 49. f4 {[%emt 0:00:11]} Kf6 {[%emt 0:00:30]} 50. Kb3 {[%emt 0:00:21]} Kf5 {[%emt 0:00:07]} 51. Ka2 {[%emt 0:00:48]} h5 {[%emt 0:00:17]} 52. Kb1 {[%emt 0:00:12]} Ke4 {[%emt 0:00:06]} 53. Ka2 {[%emt 0:00:10]} Kxe3 {[%emt 0:00:48]} 54. g4 {[%emt 0:00:25]} hxg4 {[%emt 0:00:09]} 55. hxg4 {[%emt 0:00:04]} Kxf4 {[%emt 0:00:53]} 56. Kb1 {[%emt 0:00:08]} e5 {[%emt 0:00:30]} 57. Ka2 {[%emt 0:00:08]} e4 {[%emt 0:00:25]} 58. Kb1 {[%emt 0:00:06]} e3 {[%emt 0:00:34]} 59. Ka2 {[%emt 0:00:02]} e2 {[%emt 0:00:28]} 60. Kb3 {[%emt 0:00:07]} e1=Q {[%emt 0:00:32]} 61. Ka2 {[%emt 0:00:08]} Qc3 {[%emt 0:00:37]} 62. Kb1 {[%emt 0:00:07]} Bc1 {[%emt 0:00:17]} 63. Ka2 {[%emt 0:00:11]} Qb2# {[%emt 0:00:12]} 0-1

[Event "FIDE World Cup G12-B 2024"]
[Site "Batumi"]
[Date "2024.06.24"]
[Round "2.11"]
[White "Nakashidze, Nino"]
[Black "Lu, Yichen"]
[Result "0-1"]
[ECO "C02"]
[WhiteElo "1618"]
[BlackElo "1561"]
[Annotator "NA RC"]
[PlyCount "78"]
[EventDate "2024.06.23"]
[EventType "swiss"]
[EventCountry "GEO"]
[SourceTitle "playchess.com"]
[Source "ChessBase"]
[SourceQuality "1"]
[TimeControl "5400+30"]

1. e4 {[%emt 0:00:02]} e6 {[%emt 0:00:05]} 2. d4 {[%emt 0:00:09]} d5 {[%emt 0:00:05]} 3. e5 {[%emt 0:00:23]} c5 {[%emt 0:00:05]} 4. c3 {[%emt 0:00:05]} Nc6 {[%emt 0:00:05]} 5. Nf3 {[%emt 0:00:20]} Bd7 {[%emt 0:00:08]} 6. Be2 {[%emt 0:01:57]} Nge7 {[%emt 0:00:25]} 7. O-O {[%emt 0:04:48]} cxd4 {[%emt 0:00:41]} 8. cxd4 {[%emt 0:00:09]} Nf5 {[%emt 0:00:10]} 9. b3 {[%emt 0:03:42]} Be7 {[%emt 0:02:17]} 10. Bb2 {[%emt 0:01:07]} Qb6 {[%emt 0:02:03]} 11. Qd2 {[%emt 0:06:34]} h5 {[%emt 0:14:14]} 12. h3 {[%emt 0:01:18]} f6 {[%emt 0:01:27]} 13. exf6 {[%emt 0:04:28]} Bxf6 {[%emt 0:00:18]} 14. Rd1 {[%emt 0:00:46]} Rc8 {[%emt 0:04:36]} 15. Na3 {[%emt 0:01:33]} Qb4 {[%emt 0:03:02]} 16. Nc2 {[%emt 0:07:45]} Qxd2 {[%emt 0:01:26]} 17. Rxd2 {[%emt 0:00:21]} Kf7 {[%emt 0:02:32]} 18. Rdd1 {[%emt 0:03:43]} Nd6 {[%emt 0:03:58]} 19. Nd2 {[%emt 0:03:10]} g6 {[%emt 0:02:10]} 20. Rac1 {[%emt 0:04:50]} Kg7 {[%emt 0:00:51]} 21. Nf3 {[%emt 0:18:58]} Ne4 {[%emt 0:01:43]} 22. Ne5 {[%emt 0:03:02]} Nxe5 {[%emt 0:01:16]} 23. dxe5 {[%emt 0:00:44]} Bg5 {[%emt 0:00:12]} 24. Ne3 {[%emt 0:03:01]} Bh4 {[%emt 0:11:29]} 25. f3 {[%emt 0:02:48]} Bf2+ {[%emt 0:02:19]} 26. Kf1 {[%emt 0:08:09]} Bxe3 {[%emt 0:01:53]} 27. Rxc8 {[%emt 0:00:48]} Ng3+ {[%emt 0:00:34]} 28. Ke1 {[%emt 0:01:23]} Rxc8 {[%emt 0:01:03]} 29. Bd3 {[%emt 0:02:10]} a6 {[%emt 0:02:01]} 30. a3 {[%emt 0:08:42]} Bb5 {[%emt 0:00:13]} 31. Bxb5 {[%emt 0:00:21]} axb5 {[%emt 0:00:02]} 32. Rd3 {[%emt 0:01:34]} Bc1 {[%emt 0:01:21]} 33. Bxc1 {[%emt 0:01:57]} Rxc1+ {[%emt 0:00:03]} 34. Kf2 {[%emt 0:00:30]} h4 {[%emt 0:01:04]} 35. a4 {[%emt 0:02:59]} bxa4 {[%emt 0:00:12]} 36. bxa4 {[%emt 0:00:10]} Rc2+ {[%emt 0:00:16]} 37. Kg1 {[%emt 0:00:43]} d4 {[%emt 0:02:20]} 38. Rb3 {[%emt 0:01:48]} Rc1+ {[%emt 0:00:09]} 39. Kf2 {[%emt 0:00:09]} Rf1# {[%emt 0:00:07]} 0-1